fUSD/lending_fUSD_20250812
["ID","MTS","AMOUNT","RATE_DAILY","PERIOD"]
[378825628,1755037871251,-400.0,0.00049863,120]
[378825629,1755037871263,-468.94,0.00049863,120]
[378825630,1755037871273,-431.59,0.00049863,120]
[378825631,1755037871285,-560.47,0.00049863,120]
[378825632,1755037871294,-400.0,0.00049863,120]
[378825633,1755037871304,-492.29,0.00049863,120]
[378825634,1755037871315,-522.75,0.00049863,120]
[378825635,1755037871324,-1000.0,0.00049863,2]
[378825636,1755037871335,-985.5,0.00049863,120]
[378825637,1755037871346,-400.0,0.00049863,120]
[378825638,1755037871356,-454.09,0.00049863,120]
[378825639,1755037871365,-400.0,0.00049863,120]
[378825640,1755037871374,-400.0,0.00049863,120]
[378825641,1755037871385,-400.0,0.00049863,120]
[378825642,1755037871397,-704.2,0.00049863,120]
[378825643,1755037871408,-1062.41,0.00049863,120]
[378825644,1755037871419,-730.4,0.00049863,120]
[378825645,1755037871429,-400.0,0.00049863,120]
[378825646,1755037871439,-694.43,0.00049863,120]
[378825647,1755037871449,-400.0,0.00049863,120]
[378825648,1755037871459,-1743.25,0.00049863,120]
[378825649,1755037871470,-400.0,0.00049863,120]
[378825650,1755037871480,-430.1017706,0.00049863,120]
[378825651,1755037871491,-577.95,0.00049863,120]
[378825652,1755037871501,-400.0,0.00049863,120]
[378825653,1755037871510,-400.0,0.00049863,120]
[378825654,1755037871520,-400.0,0.00049863,120]
[378825655,1755037871529,-925.07,0.00049863,120]
[378825656,1755037871539,-1047.72,0.00049863,120]
[378825657,1755037871549,-566.42,0.00049863,120]
[378825658,1755037871558,-400.0,0.00049863,120]
[378825659,1755037871568,-909.04,0.00049863,120]
[378825660,1755037871577,-400.0,0.00049863,120]
[378825661,1755037871588,-400.0,0.00049863,120]
[378825662,1755037871597,-1321.76,0.00049863,120]
[378825663,1755037871606,-400.0,0.00049863,120]
[378825664,1755037871616,-400.0,0.00049863,120]
[378825665,1755037871626,-400.0,0.00049863,120]
[378825666,1755037871635,-400.0,0.00049863,120]
[378825667,1755037871645,-400.0,0.00049863,120]
[378825668,1755037871654,-400.0,0.00049863,120]
[378825669,1755037871664,-1434.62,0.00049863,120]
[378825670,1755037871674,-3673.48,0.00049863,120]
[378825671,1755037871685,-400.0,0.00049863,120]
[378825672,1755037871698,-325.34348762,0.00049863,120]
[378825673,1755037871708,-716.03,0.00049863,120]
[378825674,1755037871718,-400.0,0.00049863,120]
[378825675,1755037871727,-423.76,0.00049863,120]
[378825676,1755037871738,-400.0,0.00049863,120]
[378825677,1755037871747,-400.0,0.00049863,120]
[378825678,1755037871757,-960.04,0.00049863,120]
[378825679,1755037871768,-400.0,0.00049863,120]
[378825680,1755037871777,-400.0,0.00049863,120]
[378825681,1755037871786,-400.0,0.00049863,120]
[378825682,1755037871796,-400.0,0.00049863,120]
[378825683,1755037871805,-400.0,0.00049863,120]
[378825684,1755037871814,-400.0,0.00049863,120]
[378825685,1755037871824,-400.0,0.00049863,120]
[378825686,1755037871834,-4366.8,0.00049863,120]
[378825687,1755037871843,-841.27,0.00049863,120]
[378825688,1755037871854,-735.82,0.00049863,120]
[378825689,1755037871863,-1626.59,0.00049863,120]
[378825690,1755037871873,-736.93,0.00049863,120]
[378825691,1755037871882,-573.36,0.00049863,120]
[378825692,1755037871891,-150.0,0.00049863,120]
[378825693,1755037871901,-250.0,0.0004987,3]
[378825694,1755037871911,-500.0,0.0004989,120]
[378825695,1755037871920,-176.06595384,0.000499,120]
[378825696,1755037871930,-167.34,0.000499,30]
[378825697,1755037871939,-271.0,0.000499,2]
[378825698,1755037871949,-2400.0,0.000499,18]
[378825699,1755037871959,-530.86115,0.000499,2]
[378825700,1755037871968,-2345.90057406,0.000499,2]
[378825701,1755037871978,-150.0,0.00049987,120]
[378825702,1755037871987,-42993.70809127,0.0004999,2]
[378825703,1755037871996,-151.0,0.0004999,120]
[378825704,1755037872006,-151.0,0.0004999,120]
[378825705,1755037872015,-151.0,0.0004999,120]
[378825706,1755037872025,-151.0,0.0004999,118]
[378825707,1755037872035,-1121.84,0.00049999,120]
[378825708,1755037872044,-2984.6024572,0.0005,7]
[378825709,1755037872053,-285.56,0.0005,30]
[378825710,1755037872063,-1142.54158829,0.0005,2]
[378825711,1755037872073,-462.26286145,0.0005,2]
[378825712,1755037872083,-22625.22847641,0.0005,14]
[378825713,1755037872092,-6414.3684113,0.0005,30]
[378825714,1755037872102,-1000.0,0.0005,120]
[378825715,1755037872111,-400.0,0.0005,120]
[378825716,1755037872120,-1561.34362143,0.0005,120]
[378825717,1755037872130,-306.07480698,0.0005,120]
[378825718,1755037872139,-6076.0,0.0005,120]
[378825719,1755037872149,-218.18,0.0005,120]
[378825720,1755037872158,-300.0,0.0005,120]
[378825721,1755037872168,-49563.16466621,0.0005,90]
[378825722,1755037872873,-2016.83533379,0.0005,90]
[378825723,1755037872883,-163.26309532,0.0005,30]
[378825724,1755037872892,-2794.27759855,0.0005,120]
[378825725,1755037872902,-199.9,0.0005,120]
[378825726,1755037872911,-593.72,0.0005,120]
[378825727,1755037872922,-159.7997317,0.0005,90]
[378825728,1755037872931,-150.0,0.0005,120]
[378825729,1755037872940,-624.0,0.0005,120]
[378825730,1755037872950,-607.0,0.0005,120]
[378825731,1755037872960,-4708.03776508,0.0005,120]
[378825732,1755037872969,-608.0,0.0005,120]
[378825733,1755037872979,-607.0,0.0005,120]
[378825734,1755037872989,-608.0,0.0005,120]
[378825735,1755037872998,-243.0,0.0005,120]
[378825736,1755037873008,-500.0,0.0005,120]
[378825737,1755037873017,-153.201786,0.0005,120]
[378825738,1755037873027,-151.0,0.0005,120]
[378825739,1755037873037,-151.0,0.0005,120]
[378825740,1755037873048,-151.0,0.0005,120]
[378825741,1755037873057,-151.0,0.0005,120]
[378825742,1755037873068,-364.0,0.0005,120]
[378825743,1755037873077,-500.0,0.00050027,120]
[378825744,1755037873086,-160.55208972,0.00050036,120]
[378825745,1755037873096,-160.55208972,0.00050036,120]
[378825746,1755037873106,-160.55208972,0.00050036,120]
[378825747,1755037873115,-160.55208972,0.00050036,120]
[378825748,1755037873124,-160.55208972,0.00050036,120]
[378825749,1755037873133,-160.55208972,0.00050036,120]
[378825750,1755037873143,-160.55208972,0.00050036,120]
[378825751,1755037873151,-160.55208972,0.00050036,120]
[378825752,1755037873161,-160.55208972,0.00050036,120]
[378825753,1755037873170,-160.55208972,0.00050036,120]
[378825754,1755037873179,-160.55208972,0.00050036,120]
[378825755,1755037873189,-160.55208972,0.00050036,120]
[378825756,1755037873200,-160.55208972,0.00050036,120]
[378825757,1755037873210,-160.55,0.00050036,120]
[378825758,1755037873219,-152.80905167,0.00050036,120]
[378825759,1755037873228,-152.80905167,0.00050036,120]
[378825760,1755037873237,-152.80905167,0.00050036,120]
[378825761,1755037873246,-152.80905167,0.00050036,120]
[378825762,1755037873255,-152.80905167,0.00050036,120]
[378825763,1755037873265,-152.80905167,0.00050036,120]
[378825764,1755037873276,-152.80905167,0.00050036,120]
[378825765,1755037873285,-152.80905167,0.00050036,120]
[378825766,1755037873295,-152.80905167,0.00050036,120]
[378825767,1755037873305,-152.8,0.00050036,120]
[378825768,1755037873314,-156.66952742,0.00050036,120]
[378825769,1755037873323,-156.66952742,0.00050036,120]
[378825770,1755037873333,-156.66952742,0.00050036,120]
[378825771,1755037873344,-156.66952742,0.00050036,120]
[378825772,1755037873354,-156.66952742,0.00050036,120]
[378825773,1755037873363,-156.66952742,0.00050036,120]
[378825774,1755037873372,-156.66952742,0.00050036,120]
[378825775,1755037873382,-156.66952742,0.00050036,120]
[378825776,1755037873391,-156.66952742,0.00050036,120]
[378825777,1755037873400,-156.66952742,0.00050036,120]
[378825778,1755037873410,-156.66952742,0.00050036,120]
[378825779,1755037873420,-156.66,0.00050036,120]
[378825780,1755037873430,-3439.48806374,0.00050036,15]
[378825781,1755037873439,-500.0,0.00050049,120]
[378825782,1755037873447,-160.6082072,0.00050102,2]
[378825783,1755037873457,-160.6082072,0.00050102,2]
[378825784,1755037873466,-160.6082072,0.00050102,2]
[378825785,1755037873475,-150.0,0.00050109,120]
[378825786,1755037873484,-263.8427778,0.00050134,120]
[378825787,1755037873493,-300.0,0.00050135,30]
[378825788,1755037873503,-1121.84,0.00050135,120]
[378825789,1755037873512,-1121.84,0.00050135,120]
[378825790,1755037873522,-400.0,0.00050136,2]
[378825791,1755037873531,-305.851563,0.00050136,120]
[378825792,1755037873540,-400.0,0.00050136,120]
[378825793,1755037873549,-400.0,0.00050136,120]
[378825794,1755037873559,-400.5,0.00050136,120]
[378825795,1755037873568,-400.0,0.00050136,120]
[378825796,1755037873577,-400.0,0.00050136,120]
[378825797,1755037873586,-400.0,0.00050136,120]
[378825798,1755037873595,-400.0,0.00050136,120]
[378825799,1755037873605,-400.0,0.00050136,120]
[378825800,1755037873614,-400.0,0.00050136,120]
[378825801,1755037873623,-400.0,0.00050136,120]
[378825802,1755037873632,-400.0,0.00050136,120]
[378825803,1755037873641,-400.0,0.00050136,120]
[378825804,1755037873651,-451.58,0.00050136,120]
[378825805,1755037873660,-400.0,0.00050136,120]
[378825806,1755037873669,-400.0,0.00050136,120]
[378825807,1755037873679,-379.93416457,0.00050136,120]
[378825808,1755037873691,-400.0,0.00050136,120]
[378825809,1755037873705,-400.0,0.00050136,30]
[378825810,1755037873714,-400.0,0.00050136,120]
[378825811,1755037873724,-488.22,0.00050136,120]
[378825812,1755037873733,-400.0,0.00050136,120]
[378825813,1755037873744,-400.0,0.00050136,120]
[378825814,1755037873754,-400.0,0.00050136,120]
[378825815,1755037873767,-400.0,0.00050136,120]
[378825816,1755037873777,-400.0,0.00050136,120]
[378825817,1755037873786,-531.92,0.00050136,120]
[378825818,1755037873795,-400.0,0.00050136,120]
[378825819,1755037873804,-400.0,0.00050136,120]
[378825820,1755037873814,-400.0,0.00050136,120]
[378825821,1755037873823,-400.0,0.00050136,120]
[378825822,1755037873832,-400.0,0.00050136,120]
[378825823,1755037873841,-400.0,0.00050136,120]
[378825824,1755037873850,-717.55,0.00050136,120]
[378825825,1755037873859,-400.0,0.00050136,120]
[378825826,1755037873869,-400.0,0.00050136,120]
[378825827,1755037873878,-400.0,0.00050136,120]
[378825828,1755037873887,-400.0,0.00050136,120]
[378825829,1755037873897,-400.0,0.00050136,120]
[378825830,1755037873906,-342.22789927,0.00050136,120]
[378825831,1755037873915,-400.0,0.00050136,120]
[378825832,1755037873926,-400.0,0.00050136,120]
[378825833,1755037873946,-400.0,0.00050136,120]
[378825834,1755037873966,-400.0,0.00050136,120]
[378825835,1755037873986,-463.89,0.00050136,120]
[378825836,1755037874002,-400.0,0.00050136,120]
[378825837,1755037874011,-400.0,0.00050136,120]
[378825838,1755037874021,-151.0,0.00050136,120]
[378825839,1755037874030,-400.0,0.00050136,120]
[378825840,1755037874039,-400.0,0.00050136,120]
[378825841,1755037874048,-400.0,0.00050136,120]
[378825842,1755037874058,-400.0,0.00050136,120]
[378825843,1755037874068,-400.0,0.00050136,120]
[378825844,1755037874077,-182.80796077,0.00050136,120]
[378825845,1755037874504,-1888.0,0.00038914,3]
[378825846,1755037874514,-3776.0,0.00041154,3]
[378825847,1755037874523,-151.0,0.00049315,30]
[378825848,1755037874533,-400.0,0.00049315,120]
[378825849,1755037874543,-400.0,0.00049315,120]
[378825850,1755037874553,-400.0,0.00049315,120]
[378825851,1755037874562,-400.0,0.00049315,120]
[378825852,1755037874571,-491.43,0.00049315,120]
[378825853,1755037874581,-151.0,0.00049589,120]
[378825854,1755037874590,-400.0,0.00049589,120]
[378825855,1755037874600,-275.51,0.00049863,120]
[378825856,1755037874609,-217.19203923,0.00050136,120]
[378825857,1755037874619,-400.0,0.00050136,120]
[378825858,1755037874628,-400.0,0.00050136,120]
[378825859,1755037874637,-491.1735636,0.00050136,120]
[378825860,1755037874647,-252.01511603,0.00050136,120]
[378825861,1755037874657,-400.0,0.00050136,120]
[378825862,1755037874667,-400.0,0.00050136,120]
[378825863,1755037874677,-400.0,0.00050136,120]
[378825864,1755037874687,-400.0,0.00050136,120]
[378825865,1755037874700,-400.0,0.00050136,120]
[378825866,1755037874710,-454.02,0.00050136,120]
[378825867,1755037874719,-400.0,0.00050136,120]
[378825868,1755037874729,-400.0,0.00050136,120]
[378825869,1755037874739,-400.0,0.00050136,120]
[378825870,1755037874748,-400.0,0.00050136,120]
[378825871,1755037874757,-400.0,0.00050136,120]
[378825872,1755037874767,-400.0,0.00050136,120]
[378825873,1755037874777,-400.0,0.00050136,120]
[378825874,1755037874786,-327.21358954,0.00050136,120]
[378825875,1755037874798,-72.78641046,0.00050136,120]
[378825876,1755037874807,-400.0,0.00050136,120]
[378825877,1755037874816,-400.0,0.00050136,120]
[378825878,1755037874825,-21.73858954,0.00050136,120]
[378825879,1755037874919,-1888.0,0.00045069,3]
[378825880,1755037874929,-378.26141046,0.00050136,120]
[378825881,1755037874939,-204.35005376,0.00050136,120]
[378825882,1755037874961,-3776.0,0.00047309,3]
[378825883,1755037874971,-195.64994624,0.00050136,120]
[378825884,1755037874980,-2000.0,0.00050136,30]
[378825885,1755037874990,-400.0,0.00050136,120]
[378825886,1755037875000,-400.0,0.00050136,120]
[378825887,1755037875009,-400.0,0.00050136,120]
[378825888,1755037875019,-502.99916713,0.00050136,120]
[378825889,1755037875028,-400.0,0.00050136,120]
[378825890,1755037875037,-400.0,0.00050136,120]
[378825891,1755037875046,-400.0,0.00050136,120]
[378825892,1755037875055,-400.0,0.00050136,120]
[378825893,1755037875064,-400.0,0.00050136,120]
[378825894,1755037875073,-400.0,0.00050136,120]
[378825895,1755037875082,-510.59,0.00050136,120]
[378825896,1755037875091,-400.0,0.00050136,120]
[378825897,1755037875100,-400.0,0.00050136,120]
[378825898,1755037875109,-400.0,0.00050136,120]
[378825899,1755037875118,-400.0,0.00050136,120]
[378825900,1755037875127,-153.17,0.00050136,120]
[378825901,1755037875136,-400.0,0.00050136,120]
[378825902,1755037875145,-400.0,0.00050136,120]
[378825903,1755037875154,-400.0,0.00050136,120]
[378825904,1755037875164,-400.0,0.00050136,120]
[378825905,1755037875173,-400.0,0.00050136,120]
[378825906,1755037875183,-400.0,0.00050136,120]
[378825907,1755037875193,-400.0,0.00050136,120]
[378825908,1755037875202,-400.0,0.00050136,120]
[378825909,1755037875211,-400.0,0.00050136,120]
[378825910,1755037875220,-400.0,0.00050136,120]
[378825911,1755037875230,-400.0,0.00050136,120]
[378825912,1755037875239,-400.0,0.00050136,120]
[378825913,1755037875248,-400.0,0.00050136,120]
[378825914,1755037875257,-400.0,0.00050136,120]
[378825915,1755037875266,-420.25,0.00050136,120]
[378825916,1755037875275,-400.0,0.00050136,120]
[378825917,1755037875285,-400.0,0.00050136,120]
[378825918,1755037875294,-400.0,0.00050136,120]
[378825919,1755037875303,-400.0,0.00050136,120]
[378825920,1755037875312,-400.0,0.00050136,30]
[378825921,1755037875321,-400.0,0.00050136,120]
[378825922,1755037875330,-151.883679,0.00050136,120]
[378825923,1755037875339,-400.0,0.00050136,120]
[378825924,1755037875348,-400.0,0.00050136,120]
[378825925,1755037875357,-400.0,0.00050136,120]
[378825926,1755037875367,-400.0,0.00050136,120]
[378825927,1755037875376,-400.0,0.00050136,120]
[378825928,1755037875385,-460.0,0.00050136,120]
[378825929,1755037875394,-400.0,0.00050136,120]
[378825930,1755037875403,-400.0,0.00050136,120]
[378825931,1755037875412,-400.0,0.00050136,120]
[378825932,1755037875421,-540.11,0.00050136,120]
[378825933,1755037875431,-151.332537,0.00050136,120]
[378825934,1755037875440,-400.0,0.00050136,120]
[378825935,1755037875449,-400.0,0.00050136,120]
[378825936,1755037875458,-400.0,0.00050136,120]
[378825937,1755037875468,-400.0,0.00050136,120]
[378825938,1755037875477,-645.39160235,0.00050136,120]
[378825939,1755037875486,-400.0,0.00050136,120]
[378825940,1755037875495,-400.0,0.00050136,120]
[378825941,1755037875504,-400.0,0.00050136,120]
[378825942,1755037875513,-400.0,0.00050136,120]
[378825943,1755037875523,-400.0,0.00050136,120]
[378825944,1755037875531,-400.0,0.00050136,120]
[378825945,1755037875541,-400.0,0.00050136,120]
[378825946,1755037875550,-301.402888,0.00050136,120]
[378825947,1755037875559,-400.0,0.00050136,120]
[378825948,1755037875568,-400.0,0.00050136,120]
[378825949,1755037875578,-301.402888,0.00050136,120]
[378825950,1755037875587,-400.0,0.00050136,120]
[378825951,1755037875596,-401.34,0.00050136,120]
[378825952,1755037875605,-1381.08,0.00050136,120]
[378825953,1755037875614,-400.0,0.00050136,120]
[378825954,1755037875623,-400.0,0.00050136,120]
[378825955,1755037875633,-400.0,0.00050136,120]
[378825956,1755037875643,-906.43,0.00050136,120]
[378825957,1755037875652,-543.00432199,0.00050136,120]
[378825958,1755037875662,-400.0,0.00050136,120]
[378825959,1755037875671,-400.0,0.00050136,120]
[378825960,1755037875681,-702.64,0.00050136,120]
[378825961,1755037875692,-400.0,0.00050136,120]
[378825962,1755037875704,-400.0,0.00050136,120]
[378825963,1755037875713,-400.0,0.00050136,120]
[378825964,1755037875722,-400.0,0.00050136,120]
[378825965,1755037875731,-433.34,0.00050136,120]
[378825966,1755037875742,-400.0,0.00050136,120]
[378825967,1755037875752,-736.51,0.00050136,120]
[378825968,1755037875761,-400.0,0.00050136,120]
[378825969,1755037875772,-400.0,0.00050136,120]
[378825970,1755037875782,-400.0,0.00050136,120]
[378825971,1755037875791,-400.0,0.00050136,120]
[378825972,1755037875800,-554.0,0.00050136,120]
[378825973,1755037875809,-941.66,0.00050136,120]
[378825974,1755037875818,-400.0,0.00050136,120]
[378825975,1755037875827,-400.0,0.00050136,120]
[378825976,1755037875836,-520.0,0.00050136,120]
[378825977,1755037875845,-400.0,0.00050136,120]
[378825978,1755037875854,-400.0,0.00050136,120]
[378825979,1755037875864,-460.00538744,0.00050136,120]
[378825980,1755037875873,-400.0,0.00050136,120]
[378825981,1755037875882,-400.0,0.00050136,120]
[378825982,1755037875892,-483.35,0.00050136,120]
[378825983,1755037875901,-598.33,0.00050136,120]
[378825984,1755037875911,-257.71,0.00050136,120]
[378825985,1755037875919,-400.0,0.00050136,120]
[378825986,1755037875929,-400.0,0.00050136,120]
[378825987,1755037875938,-400.0,0.00050136,120]
[378825988,1755037875947,-836.32,0.00050136,120]
[378825989,1755037875956,-400.0,0.00050136,120]
[378825990,1755037875966,-465.91,0.00050136,120]
[378825991,1755037875975,-151.0,0.00050136,120]
[378825992,1755037875985,-537.7,0.00050136,120]
[378825993,1755037875997,-400.0,0.00050136,120]
[378825994,1755037876007,-400.0,0.00050136,120]
[378825995,1755037876016,-400.0,0.00050136,120]
[378825996,1755037876024,-509.33,0.00050136,120]
[378825997,1755037876035,-400.0,0.00050136,120]
[378825998,1755037876046,-400.0,0.00050136,120]
[378825999,1755037876056,-787.77,0.00050136,120]
[378826000,1755037876065,-275.09,0.00050136,120]
[378826001,1755037876075,-400.0,0.00050136,120]
[378826002,1755037876084,-429.95,0.00050136,120]
[378826003,1755037876093,-400.0,0.00050136,120]
[378826004,1755037876102,-400.0,0.00050136,120]
[378826005,1755037876112,-400.0,0.00050136,120]
[378826006,1755037876122,-400.0,0.00050136,120]
[378826007,1755037876131,-151.0,0.00050136,120]
[378826008,1755037876140,-400.0,0.00050136,120]
[378826009,1755037876149,-400.0,0.00050136,120]
[378826010,1755037876158,-400.0,0.00050136,120]
[378826011,1755037876167,-619.5,0.00050136,120]
[378826012,1755037876177,-477.55,0.00050136,120]
[378826013,1755037876186,-400.0,0.00050136,120]
[378826014,1755037876195,-673.75,0.00050136,120]
[378826015,1755037876205,-400.0,0.00050136,120]
[378826016,1755037876214,-400.0,0.00050136,120]
[378826017,1755037876223,-151.0,0.00050136,120]
[378826018,1755037876232,-400.0,0.00050136,120]
[378826019,1755037876243,-400.0,0.00050136,120]
[378826020,1755037876252,-400.0,0.00050136,120]
[378826021,1755037876262,-907.71,0.00050136,120]
[378826022,1755037876272,-400.0,0.00050136,120]
[378826023,1755037876281,-567.95,0.00050136,120]
[378826024,1755037876290,-440.34,0.00050136,120]
[378826025,1755037876498,-151.0,0.00050136,120]
[378826026,1755037876507,-400.0,0.00050136,120]
[378826027,1755037876516,-607.43,0.00050136,120]
[378826028,1755037876526,-181.85734184,0.00050136,120]
[378826029,1755037876536,-408.85,0.00050136,120]
[378826030,1755037876545,-244.89,0.00050136,120]
[378826031,1755037876555,-561.5,0.00050136,120]
[378826032,1755037876564,-151.0,0.00050136,120]
[378826033,1755037876573,-400.0,0.00050136,120]
[378826034,1755037876582,-683.62,0.00050136,120]
[378826035,1755037876591,-426.98,0.00050136,120]
[378826036,1755037876600,-196.11402278,0.00050136,120]
[378826037,1755037876609,-400.0,0.00050136,120]
[378826038,1755037876618,-400.0,0.00050136,120]
[378826039,1755037876627,-400.0,0.00050136,120]
[378826040,1755037876636,-400.0,0.00050136,120]
[378826041,1755037876646,-400.0,0.00050136,120]
[378826042,1755037876655,-847.43,0.00050136,120]
[378826043,1755037876664,-400.0,0.00050136,120]
[378826044,1755037876673,-520.5,0.00050136,120]
[378826045,1755037876683,-467.04,0.00050136,120]
[378826046,1755037876695,-562.36,0.00050136,120]
[378826047,1755037876704,-910.39,0.00050136,120]
[378826048,1755037876718,-674.26,0.00050136,120]
[378826049,1755037876727,-1059.95,0.00050136,120]
[378826050,1755037876737,-791.57,0.00050136,120]
[378826051,1755037876747,-400.0,0.00050136,120]
[378826052,1755037876756,-400.0,0.00050136,120]
[378826053,1755037876766,-400.0,0.00050136,120]
[378826054,1755037876776,-516.94,0.00050136,120]
[378826055,1755037876785,-692.85,0.00050136,120]
[378826056,1755037876795,-400.0,0.00050136,120]
[378826057,1755037876804,-400.0,0.00050136,120]
[378826058,1755037876814,-400.0,0.00050136,120]
[378826059,1755037876824,-490.28,0.00050136,120]
[378826060,1755037876833,-1249.89,0.00050136,120]
[378826061,1755037876844,-523.78,0.00050136,120]
[378826062,1755037876853,-1396.98,0.00050136,120]
[378826063,1755037876863,-504.11,0.00050136,120]
[378826064,1755037876871,-400.0,0.00050136,120]
[378826065,1755037876881,-497.56,0.00050136,120]
[378826066,1755037876890,-605.68,0.00050136,120]
[378826067,1755037876899,-477.9,0.00050136,120]
[378826068,1755037876909,-400.0,0.00050136,120]
[378826069,1755037876919,-628.08,0.00050136,120]
[378826070,1755037876929,-151.0,0.00050136,120]
[378826071,1755037876939,-400.0,0.00050136,120]
[378826072,1755037876948,-508.64,0.00050136,120]
[378826073,1755037876957,-508.07,0.00050136,30]
[378826074,1755037876967,-400.0,0.00050136,120]
[378826075,1755037876976,-400.0,0.00050136,120]
[378826076,1755037876985,-400.0,0.00050136,120]
[378826077,1755037876994,-901.75,0.00050136,120]
[378826078,1755037877003,-964.77,0.00050136,120]
[378826079,1755037877012,-791.31,0.00050136,120]
[378826080,1755037877022,-400.0,0.00050136,120]
[378826081,1755037877031,-467.89,0.00050136,120]
[378826082,1755037877040,-400.0,0.00050136,120]
[378826083,1755037877049,-467.26,0.00050136,120]
[378826084,1755037877058,-400.0,0.00050136,120]
[378826085,1755037877070,-767.98,0.00050136,120]
[378826086,1755037877079,-1112.78,0.00050136,120]
[378826087,1755037877088,-151.0,0.00050136,120]
[378826088,1755037877097,-468.32,0.00050136,120]
[378826089,1755037877106,-662.14,0.00050136,120]
[378826090,1755037877117,-400.0,0.00050136,120]
[378826091,1755037877127,-400.0,0.00050136,120]
[378826092,1755037877135,-410.47,0.00050136,120]
[378826093,1755037877144,-627.85,0.00050136,120]
[378826094,1755037877153,-400.0,0.00050136,120]
[378826095,1755037877163,-458.16,0.00050136,120]
[378826096,1755037877172,-169.56,0.00050136,120]
[378826097,1755037877182,-400.0,0.00050136,120]
[378826098,1755037877191,-803.25,0.00050136,120]
[378826099,1755037877200,-400.0,0.00050136,120]
[378826100,1755037877209,-151.0,0.00050136,120]
[378826101,1755037877219,-400.0,0.00050136,120]
[378826102,1755037877228,-400.0,0.00050136,120]
[378826103,1755037877237,-400.0,0.00050136,120]
[378826104,1755037877247,-151.0,0.00050136,120]
[378826105,1755037877256,-400.0,0.00050136,120]
[378826106,1755037877266,-557.26,0.00050136,120]
[378826107,1755037877275,-400.0,0.00050136,120]
[378826108,1755037877284,-400.0,0.00050136,120]
[378826109,1755037877293,-400.0,0.00050136,120]
[378826110,1755037877303,-746.33,0.00050136,120]
[378826111,1755037877312,-524.7626324,0.00050136,120]
[378826112,1755037877321,-400.0,0.00050136,60]
[378826113,1755037877331,-400.0,0.00050136,120]
[378826114,1755037877341,-400.0,0.00050136,120]
[378826115,1755037877350,-457.59,0.00050136,120]
[378826116,1755037877359,-496.12,0.00050136,120]
[378826117,1755037877368,-946.05,0.00050136,120]
[378826118,1755037877377,-482.29,0.00050136,120]
[378826119,1755037877386,-400.0,0.00050136,120]
[378826120,1755037877396,-400.0,0.00050136,120]
[378826121,1755037877405,-400.0,0.00050136,120]
[378826122,1755037877414,-898.78,0.00050136,120]
[378826123,1755037877423,-400.0,0.00050136,120]
[378826124,1755037877432,-400.0,0.00050136,120]
[378826125,1755037877441,-400.0,0.00050136,120]
[378826126,1755037877451,-811.32,0.00050136,120]
[378826127,1755037877460,-400.0,0.00050136,120]